[Event "FIDE Chesscom Grand Swiss 2021"]
[Site "Riga"]
[Date "2021.11.07"]
[Round "11.46"]
[White "Ivic, Velimir"]
[Black "Vokhidov, Shamsiddin"]
[Result "1/2-1/2"]
[ECO "B66"]
[WhiteElo "2606"]
[BlackElo "2521"]
[Annotator "RC"]
[PlyCount "178"]
[EventDate "2021.10.27"]
[EventType "swiss"]
[EventCountry "LAT"]
[Tiebreak "Cut1 Buchholz+Sonneborn-Berger (Swiss)"]
[SourceTitle "playchess.com"]
[Source "ChessBase"]
[SourceQuality "1"]
[TimeControl "40/6000+30:20/3000+30:900+30"]

1. e4 {[%emt 0:00:04]} c5 {[%emt 0:00:02]} 2. Nf3 {[%emt 0:00:05]} d6 {[%emt 0:
00:02]} 3. d4 {[%emt 0:00:06]} cxd4 {[%emt 0:00:03]} 4. Nxd4 {[%emt 0:00:06]}
Nf6 {[%emt 0:00:04]} 5. Nc3 {[%emt 0:00:03]} Nc6 {[%emt 0:00:03]} 6. Bg5 {
[%emt 0:00:06]} e6 {[%emt 0:00:05]} 7. Qd2 {[%emt 0:00:04]} Be7 {[%emt 0:00:05]
} 8. O-O-O {[%emt 0:05:56]} a6 {[%emt 0:00:10]} 9. f3 {[%emt 0:02:07]} Nxd4 {
[%emt 0:01:01]} 10. Qxd4 {[%emt 0:00:05]} b5 {[%emt 0:00:03]} 11. Kb1 {[%emt 0:
04:19]} Bb7 {[%emt 0:00:11]} 12. Bc1 {[%emt 0:03:48]} Qc7 {[%emt 0:11:00]} 13.
g4 {[%emt 0:19:55]} b4 {[%emt 0:17:47]} 14. Qxb4 {[%emt 0:08:30]} d5 {[%emt 0:
00:06]} 15. Qd4 {[%emt 0:00:51]} Bc5 {[%emt 0:09:02]} 16. Qd2 {[%emt 0:05:13]}
dxe4 {[%emt 0:02:16]} 17. g5 {[%emt 0:07:11]} e3 {[%emt 0:01:22]} 18. Qe2 {
[%emt 0:07:19]} Ng4 {[%emt 0:10:35]} 19. Rg1 {[%emt 0:08:46]} Ne5 {[%emt 0:13:
12]} 20. Rg3 {[%emt 0:01:19]} O-O {[%emt 0:04:14]} 21. Bxe3 {[%emt 0:03:29]}
Bxe3 {[%emt 0:00:05]} 22. Qxe3 {[%emt 0:00:03]} Rfd8 {[%emt 0:00:03]} 23. Re1 {
[%emt 0:02:59]} Ng6 {[%emt 0:00:34]} 24. Bd3 {[%emt 0:04:24]} Nf4 {[%emt 0:02:
10]} 25. Be4 {[%emt 0:00:38]} Rab8 {[%emt 0:00:14]} 26. Rgg1 {[%emt 0:12:08]}
Bxe4 {[%emt 0:02:32]} 27. Nxe4 {[%emt 0:01:06]} Nd5 {[%emt 0:00:17]} 28. Qc1 {
[%emt 0:02:20]} Qxh2 {[%emt 0:01:40]} 29. Rd1 {[%emt 0:02:48]} Qe2 {[%emt 0:05:
22]} 30. Rd3 {[%emt 0:02:43]} Nb4 {[%emt 0:04:00]} 31. Re3 {[%emt 0:00:35]} Qc4
{[%emt 0:01:12]} 32. b3 {[%emt 0:00:10]} Qc7 {[%emt 0:00:52]} 33. Rc3 {[%emt 0:
03:09]} Qe5 {[%emt 0:01:29]} 34. Re1 {[%emt 0:02:08]} Qa5 {[%emt 0:04:34]} 35.
a3 {[%emt 0:00:17]} Nd5 {[%emt 0:00:06]} 36. Rd3 {[%emt 0:04:17]} Rdc8 {
[%emt 0:04:19]} 37. Red1 {[%emt 0:04:15]} Nc3+ {[%emt 0:03:32]} 38. Rxc3 {
[%emt 0:00:00]} Rxc3 {[%emt 0:00:02]} 39. Qd2 {[%emt 0:00:00]} Rc5 {[%emt 0:00:
24]} 40. Nxc5 {[%emt 0:00:00]} Qxc5 {[%emt 0:00:01]} 41. Kb2 {[%emt 0:10:39]}
Rc8 {[%emt 0:07:32]} 42. f4 {[%emt 0:04:01]} g6 {[%emt 0:03:41]} 43. Re1 {
[%emt 0:07:11]} Qf8 {[%emt 0:01:19]} 44. Qa5 {[%emt 0:07:29]} Qd6 {[%emt 0:01:
51]} 45. Qb4 {[%emt 0:04:21]} Rc5 {[%emt 0:08:57]} 46. Re5 {[%emt 0:06:23]} Rc6
{[%emt 0:00:28]} 47. Qxd6 {[%emt 0:00:25]} Rxd6 {[%emt 0:00:05]} 48. c4 {
[%emt 0:00:20]} f6 {[%emt 0:02:24]} 49. c5 {[%emt 0:02:51]} Rc6 {[%emt 0:01:26]
} 50. gxf6 {[%emt 0:00:05]} Kf7 {[%emt 0:00:08]} 51. b4 {[%emt 0:00:53]} h5 {
[%emt 0:00:23]} 52. a4 {[%emt 0:02:38]} Rc8 {[%emt 0:00:31]} 53. b5 {[%emt 0:
00:39]} axb5 {[%emt 0:01:56]} 54. axb5 {[%emt 0:00:03]} Kxf6 {[%emt 0:00:53]}
55. Kc3 {[%emt 0:02:12]} Rh8 {[%emt 0:01:59]} 56. b6 {[%emt 0:01:44]} h4 {
[%emt 0:00:39]} 57. Kc4 {[%emt 0:01:31]} h3 {[%emt 0:00:22]} 58. Re1 {[%emt 0:
01:12]} Ke7 {[%emt 0:01:20]} 59. Kb5 {[%emt 0:01:14]} h2 {[%emt 0:00:26]} 60.
Rh1 {[%emt 0:00:35]} Kd7 {[%emt 0:03:26]} 61. c6+ {[%emt 0:01:09]} Kc8 {
[%emt 0:00:14]} 62. Ka6 {[%emt 0:01:59]} Rh3 {[%emt 0:00:31]} 63. Kb5 {[%emt 0:
10:48]} Rb3+ {[%emt 0:11:19]} 64. Kc5 {[%emt 0:00:02]} Rc3+ {[%emt 0:00:27]}
65. Kd6 {[%emt 0:00:02]} Rd3+ {[%emt 0:00:09]} 66. Kxe6 {[%emt 0:01:54]} Rc3 {
[%emt 0:00:05]} 67. Kd6 {[%emt 0:00:11]} Rd3+ {[%emt 0:00:13]} 68. Ke6 {
[%emt 0:00:08]} Rc3 {[%emt 0:00:05]} 69. Kd5 {[%emt 0:00:05]} Rc2 {[%emt 0:00:
51]} 70. Kd6 {[%emt 0:03:28]} Rd2+ {[%emt 0:01:02]} 71. Ke7 {[%emt 0:00:36]}
Rc2 {[%emt 0:00:44]} 72. Kf7 {[%emt 0:00:46]} Rxc6 {[%emt 0:01:17]} 73. Rxh2 {
[%emt 0:00:05]} Rxb6 {[%emt 0:00:09]} 74. Rh6 {[%emt 0:00:20]} Rb4 {[%emt 0:00:
56]} 75. Rh4 {[%emt 0:00:04]} Kd7 {[%emt 0:01:20]} 76. Kxg6 {[%emt 0:00:37]}
Ke7 {[%emt 0:00:08]} 77. Rh7+ {[%emt 0:01:16]} Kf8 {[%emt 0:00:08]} 78. f5 {
[%emt 0:00:26]} Rg4+ {[%emt 0:01:14]} 79. Kf6 {[%emt 0:00:01]} Kg8 {[%emt 0:00:
05]} 80. Ra7 {[%emt 0:00:55]} Rb4 {[%emt 0:00:59]} 81. Ra8+ {[%emt 0:00:29]}
Kh7 {[%emt 0:00:02]} 82. Re8 {[%emt 0:00:20]} Rf4 {[%emt 0:04:19]} 83. Rf8 {
[%emt 0:00:55]} Ra4 {[%emt 0:00:52]} 84. Re8 {[%emt 0:00:30]} Rf4 {[%emt 0:00:
22]} 85. Re5 {[%emt 0:00:22]} Kg8 {[%emt 0:00:13]} 86. Re1 {[%emt 0:00:40]} Rf2
{[%emt 0:03:05]} 87. Rg1+ {[%emt 0:00:20]} Kf8 {[%emt 0:00:02]} 88. Rb1 {
[%emt 0:00:18]} Kg8 {[%emt 0:00:01]} 89. Rb5 {[%emt 0:00:47]} Rf1 {[%emt 0:01:
42]} 1/2-1/2

[Event "FIDE Chesscom Grand Swiss 2021"]
[Site "Riga"]
[Date "2021.11.07"]
[Round "11.49"]
[White "Paravyan, David"]
[Black "Bjerre, Jonas Buhl"]
[Result "1/2-1/2"]
[ECO "B94"]
[WhiteElo "2642"]
[BlackElo "2569"]
[Annotator "RC"]
[PlyCount "103"]
[EventDate "2021.10.27"]
[EventType "swiss"]
[EventCountry "LAT"]
[Tiebreak "Cut1 Buchholz+Sonneborn-Berger (Swiss)"]
[SourceTitle "playchess.com"]
[Source "ChessBase"]
[SourceQuality "1"]
[TimeControl "40/6000+30:20/3000+30:900+30"]

1. e4 {[%emt 0:00:05]} c5 {[%emt 0:00:08]} 2. Nf3 {[%emt 0:00:03]} d6 {[%emt 0:
00:07]} 3. d4 {[%emt 0:00:05]} cxd4 {[%emt 0:00:04]} 4. Nxd4 {[%emt 0:00:03]}
Nf6 {[%emt 0:00:06]} 5. Nc3 {[%emt 0:00:02]} a6 {[%emt 0:00:06]} 6. Bg5 {
[%emt 0:00:03]} Nbd7 {[%emt 0:00:10]} 7. a3 {[%emt 0:00:04]} Qc7 {[%emt 0:06:
09]} 8. Qd2 {[%emt 0:00:10]} e6 {[%emt 0:02:13]} 9. O-O-O {[%emt 0:15:06]} Be7
{[%emt 0:02:24]} 10. f4 {[%emt 0:13:11]} h6 {[%emt 0:05:11]} 11. Bxf6 {[%emt 0:
00:05]} Bxf6 {[%emt 0:02:29]} 12. h4 {[%emt 0:19:19]} Nc5 {[%emt 0:05:01]} 13.
g4 {[%emt 0:03:56]} Bd7 {[%emt 0:04:41]} 14. Bg2 {[%emt 0:12:49]} Na4 {[%emt 0:
08:25]} 15. Nxa4 {[%emt 0:00:30]} Bxa4 {[%emt 0:00:06]} 16. Qb4 {[%emt 0:00:13]
} Bd7 {[%emt 0:02:46]} 17. g5 {[%emt 0:02:38]} Be7 {[%emt 0:01:45]} 18. Qb3 {
[%emt 0:14:40]} Rc8 {[%emt 0:07:21]} 19. Kb1 {[%emt 0:08:43]} b5 {[%emt 0:02:
45]} 20. g6 {[%emt 0:01:23]} O-O {[%emt 0:05:53]} 21. Bh3 {[%emt 0:03:43]} Qc4
{[%emt 0:05:37]} 22. gxf7+ {[%emt 0:00:19]} Rxf7 {[%emt 0:01:32]} 23. Nxe6 {
[%emt 0:03:51]} Rf6 {[%emt 0:13:42]} 24. Ng5 {[%emt 0:03:48]} Qxb3 {[%emt 0:03:
04]} 25. cxb3 {[%emt 0:00:06]} Bxh3 {[%emt 0:00:28]} 26. Nxh3 {[%emt 0:00:05]}
Rg6 {[%emt 0:00:54]} 27. Rdg1 {[%emt 0:06:01]} Re6 {[%emt 0:03:04]} 28. Nf2 {
[%emt 0:00:06]} Rf8 {[%emt 0:01:01]} 29. f5 {[%emt 0:00:04]} Re5 {[%emt 0:00:
04]} 30. Rg6 {[%emt 0:03:45]} Rf6 {[%emt 0:04:46]} 31. h5 {[%emt 0:00:32]} d5 {
[%emt 0:02:57]} 32. Ng4 {[%emt 0:00:16]} Rxg6 {[%emt 0:00:08]} 33. Nxe5 {
[%emt 0:00:04]} Rf6 {[%emt 0:03:45]} 34. Ng6 {[%emt 0:00:32]} Kf7 {[%emt 0:02:
43]} 35. Rd1 {[%emt 0:01:08]} dxe4 {[%emt 0:00:51]} 36. Rd7 {[%emt 0:00:03]}
Rxf5 {[%emt 0:00:12]} 37. Rxe7+ {[%emt 0:00:35]} Kf6 {[%emt 0:00:04]} 38. Rxe4
{[%emt 0:00:51]} Rxh5 {[%emt 0:00:03]} 39. Nf8 {[%emt 0:00:30]} g5 {[%emt 0:07:
24]} 40. a4 {[%emt 0:00:28]} Kf5 {[%emt 0:05:22]} 41. Re1 {[%emt 0:12:12]} g4 {
[%emt 0:04:23]} 42. Ne6 {[%emt 0:14:30]} Rh2 {[%emt 0:06:35]} 43. Nd4+ {
[%emt 0:00:16]} Kf4 {[%emt 0:00:25]} 44. Rf1+ {[%emt 0:05:06]} Ke4 {[%emt 0:09:
28]} 45. axb5 {[%emt 0:00:45]} axb5 {[%emt 0:05:49]} 46. Nxb5 {[%emt 0:00:17]}
g3 {[%emt 0:01:57]} 47. Nd6+ {[%emt 0:01:03]} Ke5 {[%emt 0:03:24]} 48. Nc4+ {
[%emt 0:00:25]} Ke4 {[%emt 0:00:28]} 49. Ka2 {[%emt 0:06:38]} g2 {[%emt 0:03:
34]} 50. Re1+ {[%emt 0:00:03]} Kf3 {[%emt 0:02:50]} 51. Ne3 {[%emt 0:00:42]} h5
{[%emt 0:01:39]} 52. Nxg2 {[%emt 0:02:29]} 1/2-1/2

[Event "FIDE Chesscom Grand Swiss 2021"]
[Site "Riga"]
[Date "2021.11.07"]
[Round "11.51"]
[White "Neiksans, Arturs"]
[Black "Dreev, Aleksey"]
[Result "1/2-1/2"]
[ECO "E14"]
[WhiteElo "2570"]
[BlackElo "2635"]
[Annotator "RC"]
[PlyCount "35"]
[EventDate "2021.10.27"]
[EventType "swiss"]
[EventCountry "LAT"]
[Tiebreak "Cut1 Buchholz+Sonneborn-Berger (Swiss)"]
[SourceTitle "playchess.com"]
[Source "ChessBase"]
[SourceQuality "1"]
[TimeControl "40/6000+30:20/3000+30:900+30"]

1. d4 {[%emt 0:00:03]} d5 {[%emt 0:00:14]} 2. Nf3 {[%emt 0:00:05]} Nf6 {
[%emt 0:00:07]} 3. c4 {[%emt 0:00:05]} e6 {[%emt 0:00:31]} 4. e3 {[%emt 0:00:
22]} b6 {[%emt 0:01:02]} 5. Nc3 {[%emt 0:03:17]} Bd6 {[%emt 0:00:31]} 6. cxd5 {
[%emt 0:08:44]} exd5 {[%emt 0:00:17]} 7. Bd3 {[%emt 0:00:11]} O-O {[%emt 0:05:
31]} 8. O-O {[%emt 0:01:14]} Bb7 {[%emt 0:03:43]} 9. b3 {[%emt 0:03:28]} a6 {
[%emt 0:07:29]} 10. Bb2 {[%emt 0:02:45]} Nbd7 {[%emt 0:00:44]} 11. Ne2 {
[%emt 0:02:31]} Ne4 {[%emt 0:13:39]} 12. Ng3 {[%emt 0:01:01]} Re8 {[%emt 0:02:
51]} 13. Rc1 {[%emt 0:03:26]} g6 {[%emt 0:00:39]} 14. Qc2 {[%emt 0:05:23]} Rc8
{[%emt 0:05:09]} 15. Qe2 {[%emt 0:06:33]} Ra8 {[%emt 0:01:43]} 16. Qc2 {
[%emt 0:03:43]} Rc8 {[%emt 0:01:47]} 17. Qe2 {[%emt 0:02:17]} Ra8 {[%emt 0:00:
15]} 18. Qc2 1/2-1/2

[Event "FIDE Chesscom Grand Swiss 2021"]
[Site "Riga"]
[Date "2021.11.07"]
[Round "11.52"]
[White "Morovic Fernandez, Ivan"]
[Black "Georgiev, Kiril"]
[Result "1/2-1/2"]
[ECO "C67"]
[WhiteElo "2510"]
[BlackElo "2577"]
[Annotator "RC"]
[PlyCount "82"]
[EventDate "2021.10.27"]
[EventType "swiss"]
[EventCountry "LAT"]
[Tiebreak "Cut1 Buchholz+Sonneborn-Berger (Swiss)"]
[SourceTitle "playchess.com"]
[Source "ChessBase"]
[SourceQuality "1"]
[TimeControl "40/6000+30:20/3000+30:900+30"]

1. e4 {[%emt 0:00:04]} e5 {[%emt 0:00:31]} 2. Nf3 {[%emt 0:00:07]} Nc6 {
[%emt 0:00:09]} 3. Bb5 {[%emt 0:00:19]} Nf6 {[%emt 0:00:20]} 4. O-O {[%emt 0:
00:43]} Nxe4 {[%emt 0:00:08]} 5. Re1 {[%emt 0:00:35]} Nd6 {[%emt 0:00:10]} 6.
Nxe5 {[%emt 0:00:07]} Be7 {[%emt 0:00:13]} 7. Bf1 {[%emt 0:00:30]} Nxe5 {
[%emt 0:00:26]} 8. Rxe5 {[%emt 0:00:03]} O-O {[%emt 0:00:15]} 9. Nc3 {[%emt 0:
03:03]} Ne8 {[%emt 0:04:16]} 10. Nd5 {[%emt 0:00:39]} Bd6 {[%emt 0:00:28]} 11.
Re1 {[%emt 0:01:30]} c6 {[%emt 0:01:49]} 12. Ne3 {[%emt 0:00:20]} Be7 {[%emt 0:
00:30]} 13. Nf5 {[%emt 0:08:58]} Bf6 {[%emt 0:01:35]} 14. Qe2 {[%emt 0:01:12]}
d5 {[%emt 0:01:17]} 15. Ne7+ {[%emt 0:00:14]} Kh8 {[%emt 0:00:16]} 16. Nxc8 {
[%emt 0:00:10]} Rxc8 {[%emt 0:00:11]} 17. d3 {[%emt 0:09:34]} Nd6 {[%emt 0:00:
34]} 18. Qd1 {[%emt 0:21:15]} Bg5 {[%emt 0:04:13]} 19. Qg4 {[%emt 0:12:08]}
Bxc1 {[%emt 0:01:26]} 20. Raxc1 {[%emt 0:00:07]} Qa5 {[%emt 0:07:28]} 21. Qf4 {
[%emt 0:02:06]} Rcd8 {[%emt 0:01:04]} 22. a3 {[%emt 0:01:41]} Qb6 {[%emt 0:04:
36]} 23. b4 {[%emt 0:08:19]} Qc7 {[%emt 0:12:02]} 24. c4 {[%emt 0:01:58]} dxc4
{[%emt 0:10:59]} 25. dxc4 {[%emt 0:00:10]} Rd7 {[%emt 0:00:11]} 26. Rcd1 {
[%emt 0:03:05]} Nc8 {[%emt 0:00:34]} 27. Qf5 {[%emt 0:03:44]} Rdd8 {[%emt 0:03:
33]} 28. Bd3 {[%emt 0:10:46]} g6 {[%emt 0:00:12]} 29. Qf6+ {[%emt 0:00:02]} Kg8
{[%emt 0:00:08]} 30. c5 {[%emt 0:00:10]} Rd5 {[%emt 0:04:35]} 31. Bc4 {[%emt 0:
03:39]} Rf5 {[%emt 0:01:24]} 32. Qd4 {[%emt 0:04:47]} b6 {[%emt 0:01:01]} 33.
g3 {[%emt 0:05:26]} a5 {[%emt 0:02:30]} 34. h4 {[%emt 0:01:42]} axb4 {[%emt 0:
01:06]} 35. axb4 {[%emt 0:00:02]} bxc5 {[%emt 0:01:54]} 36. bxc5 {[%emt 0:00:
25]} Na7 {[%emt 0:07:23]} 37. Qd6 {[%emt 0:04:26]} Qxd6 {[%emt 0:02:13]} 38.
cxd6 {[%emt 0:00:06]} Rd8 {[%emt 0:00:21]} 39. d7 {[%emt 0:04:01]} Kf8 {
[%emt 0:00:40]} 40. Rd6 {[%emt 0:00:56]} Rc5 {[%emt 0:01:21]} 41. Re4 {[%emt 0:
20:45]} Nb5 {[%emt 0:02:45]} 1/2-1/2

[Event "FIDE Chesscom Grand Swiss 2021"]
[Site "Riga"]
[Date "2021.11.07"]
[Round "11.53"]
[White "Rakotomaharo, Fy Antenaina"]
[Black "Meshkovs, Nikita"]
[Result "1/2-1/2"]
[ECO "C70"]
[WhiteElo "2484"]
[BlackElo "2550"]
[Annotator "ChessBase"]
[PlyCount "175"]
[EventDate "2021.10.27"]
[EventType "swiss"]
[EventCountry "LAT"]
[Tiebreak "Cut1 Buchholz+Sonneborn-Berger (Swiss)"]
[SourceTitle "playchess.com"]
[Source "ChessBase"]
[SourceQuality "1"]
[TimeControl "40/6000+30:20/3000+30:900+30"]

1. e4 {[%emt 0:00:02]} e5 {[%emt 0:00:05]} 2. Nf3 {[%emt 0:00:05]} Nc6 {
[%emt 0:00:04]} 3. Bb5 {[%emt 0:00:41]} a6 {[%emt 0:00:11]} 4. Ba4 {[%emt 0:00:
05]} Nge7 {[%emt 0:00:04]} 5. c3 {[%emt 0:01:13]} g6 {[%emt 0:00:39]} 6. d4 {
[%emt 0:01:14]} exd4 {[%emt 0:00:05]} 7. cxd4 {[%emt 0:00:04]} b5 {[%emt 0:00:
04]} 8. Bb3 {[%emt 0:00:10]} Bg7 {[%emt 0:00:19]} 9. O-O {[%emt 0:00:37]} O-O {
[%emt 0:01:13]} 10. a4 {[%emt 0:02:02]} d5 {[%emt 0:09:41]} 11. exd5 {[%emt 0:
09:51]} bxa4 {[%emt 0:01:42]} 12. Rxa4 {[%emt 0:02:34]} Nxd5 {[%emt 0:00:31]}
13. Bg5 {[%emt 0:00:27]} Qd7 {[%emt 0:02:43]} 14. Nc3 {[%emt 0:29:18]} Nxc3 {
[%emt 0:33:03]} 15. bxc3 {[%emt 0:00:17]} a5 {[%emt 0:00:01]} 16. Re1 {[%emt 0:
13:45]} Re8 {[%emt 0:00:52]} 17. Rxe8+ {[%emt 0:04:07]} Qxe8 {[%emt 0:00:02]}
18. Bf4 {[%emt 0:00:19]} Ra7 {[%emt 0:07:00]} 19. h3 {[%emt 0:11:50]} Nd8 {
[%emt 0:03:53]} 20. Qa1 {[%emt 0:06:10]} Qb5 {[%emt 0:18:08]} 21. Qa3 {[%emt 0:
12:41]} Bf8 {[%emt 0:04:55]} 22. Qa2 {[%emt 0:00:33]} Qf5 {[%emt 0:08:09]} 23.
Be5 {[%emt 0:07:40]} Nb7 {[%emt 0:05:53]} 24. Bd5 {[%emt 0:01:34]} Qd7 {
[%emt 0:09:10]} 25. Ng5 {[%emt 0:01:32]} Nd8 {[%emt 0:00:05]} 26. Rxa5 {
[%emt 0:01:19]} Rxa5 {[%emt 0:00:06]} 27. Qxa5 {[%emt 0:00:04]} Be7 {[%emt 0:
00:03]} 28. Ne4 {[%emt 0:01:43]} c5 {[%emt 0:00:01]} 29. Qa2 {[%emt 0:01:17]}
cxd4 {[%emt 0:05:07]} 30. cxd4 {[%emt 0:00:15]} Kf8 {[%emt 0:00:22]} 31. Nf6 {
[%emt 0:01:13]} Qf5 {[%emt 0:00:53]} 32. Be4 {[%emt 0:00:48]} Qe6 {[%emt 0:00:
49]} 33. Nxh7+ {[%emt 0:00:33]} Kg8 {[%emt 0:00:24]} 34. Nf6+ {[%emt 0:00:20]}
Bxf6 {[%emt 0:00:34]} 35. Qxe6 {[%emt 0:00:07]} Nxe6 {[%emt 0:00:01]} 36. Bxf6
{[%emt 0:00:07]} Nf4 {[%emt 0:00:01]} 37. f3 {[%emt 0:01:36]} Be6 {[%emt 0:01:
01]} 38. Be5 {[%emt 0:00:31]} Nd5 {[%emt 0:00:37]} 39. g4 {[%emt 0:00:13]} f6 {
[%emt 0:00:10]} 40. Bd6 {[%emt 0:00:53]} f5 {[%emt 0:01:16]} 41. Bd3 {[%emt 0:
02:10]} Kf7 {[%emt 0:06:16]} 42. Kf2 {[%emt 0:01:21]} fxg4 {[%emt 0:03:34]} 43.
fxg4 {[%emt 0:01:08]} g5 {[%emt 0:00:06]} 44. Kg3 {[%emt 0:03:08]} Ne3 {
[%emt 0:05:06]} 45. Be2 {[%emt 0:01:21]} Bd5 {[%emt 0:02:34]} 46. h4 {[%emt 0:
04:01]} Ke6 {[%emt 0:00:03]} 47. Bc7 {[%emt 0:03:53]} gxh4+ {[%emt 0:00:55]}
48. Kxh4 {[%emt 0:00:06]} Be4 {[%emt 0:00:02]} 49. Ba6 {[%emt 0:02:46]} Kd5 {
[%emt 0:09:04]} 50. Be5 {[%emt 0:02:47]} Bf5 {[%emt 0:06:23]} 51. Bb7+ {
[%emt 0:01:31]} Kc4 {[%emt 0:00:13]} 52. g5 {[%emt 0:26:22]} Bg6 {[%emt 0:00:
53]} 53. Bc8 {[%emt 0:00:58]} Nf5+ {[%emt 0:08:43]} 54. Bxf5 {[%emt 0:01:06]}
Bxf5 {[%emt 0:00:01]} 55. Kh5 {[%emt 0:00:07]} Kd5 {[%emt 0:01:46]} 56. g6 {
[%emt 0:02:36]} Ke6 {[%emt 0:00:54]} 57. Kg5 {[%emt 0:00:12]} Be4 {[%emt 0:01:
09]} 58. Bf6 {[%emt 0:00:50]} Bd5 {[%emt 0:03:12]} 59. Bd8 {[%emt 0:00:21]} Kd7
{[%emt 0:03:14]} 60. Ba5 {[%emt 0:00:20]} Ke7 {[%emt 0:03:23]} 61. Kf5 {
[%emt 0:15:52]} Bb3 {[%emt 0:05:41]} 62. Bb4+ {[%emt 0:00:00]} Kd7 {[%emt 0:03:
31]} 63. Kf6 {[%emt 0:00:00]} Ke8 {[%emt 0:00:41]} 64. Bd2 {[%emt 0:00:00]} Bc4
{[%emt 0:00:09]} 65. Bh6 {[%emt 0:00:00]} Bb3 {[%emt 0:00:27]} 66. Bf4 {
[%emt 0:00:00]} Bc4 {[%emt 0:00:16]} 67. Kg7 {[%emt 0:00:00]} Bd3 {[%emt 0:00:
16]} 68. Bd6 {[%emt 0:00:00]} Bc2 {[%emt 0:00:18]} 69. Bb4 {[%emt 0:00:00]} Bd3
{[%emt 0:00:05]} 70. Kh6 {[%emt 0:00:00]} Bc4 {[%emt 0:00:11]} 71. Kh7 {
[%emt 0:01:57]} Bd3 {[%emt 0:00:03]} 72. Kg7 {[%emt 0:00:04]} Bc2 {[%emt 0:00:
38]} 73. Kf6 {[%emt 0:00:02]} Bb3 {[%emt 0:00:31]} 74. Ke5 {[%emt 0:00:06]} Kd7
{[%emt 0:00:42]} 75. Bd2 {[%emt 0:00:07]} Bc4 {[%emt 0:00:23]} 76. Bf4 {
[%emt 0:00:52]} Bb3 {[%emt 0:00:33]} 77. Bg3 {[%emt 0:04:25]} Bc4 {[%emt 0:00:
33]} 78. Kf5 {[%emt 0:00:22]} Bb3 {[%emt 0:00:31]} 79. Be5 {[%emt 0:00:26]} Bc4
{[%emt 0:00:25]} 80. Kg5 {[%emt 0:00:19]} Ke8 {[%emt 0:00:52]} 81. Bf6 {
[%emt 0:00:14]} Bb3 {[%emt 0:00:28]} 82. Kf4 {[%emt 0:00:33]} Bc2 {[%emt 0:00:
18]} 83. g7 {[%emt 0:00:36]} Bh7 {[%emt 0:00:51]} 84. Ke5 {[%emt 0:00:36]} Kd7
{[%emt 0:00:09]} 85. Bh4 {[%emt 0:01:52]} Bg8 {[%emt 0:00:05]} 86. Bg3 {
[%emt 0:00:14]} Bf7 {[%emt 0:00:20]} 87. Kf6 {[%emt 0:00:20]} Bg8 {[%emt 0:00:
03]} 88. Bh2 {[%emt 0:00:15]} 1/2-1/2

[Event "FIDE Chesscom Grand Swiss 2021"]
[Site "Riga"]
[Date "2021.11.07"]
[Round "11.54"]
[White "Budisavljevic, Luka"]
[Black "Van Foreest, Lucas"]
[Result "1-0"]
[ECO "E32"]
[WhiteElo "2508"]
[BlackElo "2543"]
[Annotator "RC"]
[PlyCount "101"]
[EventDate "2021.10.27"]
[EventType "swiss"]
[EventCountry "LAT"]
[Tiebreak "Cut1 Buchholz+Sonneborn-Berger (Swiss)"]
[SourceTitle "playchess.com"]
[Source "ChessBase"]
[SourceQuality "1"]
[TimeControl "40/6000+30:20/3000+30:900+30"]

1. d4 {[%emt 0:00:15]} Nf6 {[%emt 0:00:12]} 2. c4 {[%emt 0:00:18]} e6 {[%emt 0:
00:07]} 3. Nc3 {[%emt 0:00:22]} Bb4 {[%emt 0:00:05]} 4. Qc2 {[%emt 0:00:08]}
O-O {[%emt 0:00:09]} 5. e4 {[%emt 0:00:14]} d5 {[%emt 0:00:34]} 6. e5 {[%emt 0:
00:06]} Ne4 {[%emt 0:00:03]} 7. Bd3 {[%emt 0:00:04]} c5 {[%emt 0:00:11]} 8. Nf3
{[%emt 0:00:11]} cxd4 {[%emt 0:00:10]} 9. Nxd4 {[%emt 0:00:06]} Nd7 {[%emt 0:
00:10]} 10. Bf4 {[%emt 0:00:06]} Qh4 {[%emt 0:00:15]} 11. g3 {[%emt 0:00:29]}
Qh5 {[%emt 0:00:07]} 12. O-O {[%emt 0:00:07]} g5 {[%emt 0:04:21]} 13. cxd5 {
[%emt 0:00:04]} Bxc3 {[%emt 0:10:42]} 14. bxc3 {[%emt 0:00:15]} exd5 {[%emt 0:
00:08]} 15. Be3 {[%emt 0:00:35]} Nxe5 {[%emt 0:00:09]} 16. f3 {[%emt 0:10:19]}
Nc5 {[%emt 0:00:37]} 17. Bf5 {[%emt 0:06:04]} f6 {[%emt 0:01:39]} 18. Rad1 {
[%emt 0:06:39]} b6 {[%emt 0:20:26]} 19. Kg2 {[%emt 0:14:36]} g4 {[%emt 0:03:18]
} 20. fxg4 {[%emt 0:01:49]} Nxg4 {[%emt 0:01:53]} 21. Bg1 {[%emt 0:00:13]} Re8
{[%emt 0:03:00]} 22. Rf4 {[%emt 0:15:52]} Ne3+ {[%emt 0:10:05]} 23. Bxe3 {
[%emt 0:00:05]} Rxe3 {[%emt 0:00:05]} 24. Bxc8 {[%emt 0:14:46]} Rxc8 {[%emt 0:
07:12]} 25. Rh4 {[%emt 0:02:27]} Qg6 {[%emt 0:04:06]} 26. Nf5 {[%emt 0:00:52]}
Rce8 {[%emt 0:00:34]} 27. Nxe3 {[%emt 0:00:52]} Qxc2+ {[%emt 0:00:07]} 28. Nxc2
{[%emt 0:00:03]} Re2+ {[%emt 0:00:03]} 29. Kf1 {[%emt 0:10:27]} Rxc2 {[%emt 0:
00:03]} 30. Rxd5 {[%emt 0:00:07]} Rxc3 {[%emt 0:00:52]} 31. a4 {[%emt 0:02:13]}
Ra3 {[%emt 0:01:44]} 32. Rg4+ {[%emt 0:02:51]} Kf7 {[%emt 0:00:53]} 33. Rh5 {
[%emt 0:00:06]} Ra1+ {[%emt 0:00:11]} 34. Kf2 {[%emt 0:01:45]} a5 {[%emt 0:02:
32]} 35. Rxh7+ {[%emt 0:00:30]} Ke6 {[%emt 0:00:02]} 36. Rhh4 {[%emt 0:03:26]}
Ke5 {[%emt 0:00:58]} 37. Ke2 {[%emt 0:04:26]} f5 {[%emt 0:01:45]} 38. Rc4 {
[%emt 0:02:42]} Ra2+ {[%emt 0:00:36]} 39. Kd1 {[%emt 0:02:01]} Ne4 {[%emt 0:01:
05]} 40. Rh5 {[%emt 0:03:54]} Nf6 {[%emt 0:06:33]} 41. Rh8 {[%emt 0:55:12]} Ng4
{[%emt 0:51:00]} 42. Kc1 {[%emt 0:00:00]} Nxh2 {[%emt 0:00:00]} 43. Re8+ {
[%emt 0:00:00]} Kd5 {[%emt 0:00:00]} 44. Rf4 {[%emt 0:00:00]} Kc6 {[%emt 0:00:
00]} 45. Rc8+ {[%emt 0:00:00]} Kd7 {[%emt 0:00:00]} 46. Rc2 {[%emt 0:00:00]}
Rxc2+ {[%emt 0:00:00]} 47. Kxc2 {[%emt 0:00:00]} Ng4 {[%emt 0:00:00]} 48. Kc3 {
[%emt 0:00:00]} Ke6 {[%emt 0:00:00]} 49. Kc4 {[%emt 0:00:00]} Ne3+ {[%emt 0:00:
00]} 50. Kb5 {[%emt 0:00:00]} Nd5 {[%emt 0:00:00]} 51. Kc6 {[%emt 0:00:00]} 1-0